fUST/lending_fUST_20251207
["ID","MTS","AMOUNT","RATE_DAILY","PERIOD"]
[396573233,1765055462130,-500.0,9.041e-05,2]
[396573235,1765055462140,-500.0,9.041e-05,2]
[396573237,1765055462150,-500.0,9.041e-05,2]
[396573239,1765055462160,-523.79,9.041e-05,2]
[396573241,1765055462170,-658.81,9.041e-05,2]
[396573243,1765055462179,-500.0,9.041e-05,2]
[396573245,1765055462189,-500.0,9.041e-05,2]
[396573247,1765055462199,-500.0,9.041e-05,2]
[396573249,1765055462209,-2003.01,9.041e-05,2]
[396573251,1765055462220,-500.0,9.041e-05,2]
[396573253,1765055462232,-500.0,9.041e-05,2]
[396573255,1765055462245,-500.0,9.041e-05,2]
[396573257,1765055462255,-500.0,9.041e-05,2]
[396573260,1765055462266,-500.0,9.041e-05,2]
[396573262,1765055462281,-500.0,9.041e-05,2]
[396573264,1765055462292,-558.7,9.041e-05,2]
[396573266,1765055462302,-500.0,9.041e-05,2]
[396573268,1765055462313,-500.0,9.041e-05,2]
[396573270,1765055462322,-500.0,9.041e-05,2]
[396573272,1765055462332,-500.0,9.041e-05,2]
[396573274,1765055462341,-500.0,9.041e-05,2]
[396573276,1765055462352,-500.0,9.041e-05,2]
[396573278,1765055462362,-500.0,9.041e-05,2]
[396573280,1765055462372,-1095.02,9.041e-05,2]
[396573282,1765055462382,-1467.3,9.041e-05,2]
[396573284,1765055462392,-594.19,9.041e-05,2]
[396573286,1765055462401,-500.0,9.041e-05,2]
[396573288,1765055462411,-996.41,9.041e-05,2]
[396573290,1765055462420,-500.0,9.041e-05,2]
[396573292,1765055462431,-1040.86,9.041e-05,2]
[396573294,1765055462440,-478.90205033,9.041e-05,2]
[396573296,1765055462450,-500.0,9.041e-05,2]
[396573298,1765055462460,-500.0,9.041e-05,2]
[396573300,1765055462469,-500.0,9.041e-05,2]
[396573302,1765055462479,-1455.19,9.041e-05,2]
[396573304,1765055462488,-500.0,9.041e-05,2]
[396573306,1765055462498,-500.0,9.041e-05,2]
[396573308,1765055462508,-500.0,9.041e-05,2]
[396573310,1765055462517,-578.17,9.041e-05,2]
[396573312,1765055462527,-500.0,9.041e-05,2]
[396573314,1765055462536,-1090.1,9.041e-05,2]
[396573316,1765055462546,-1244.61,9.041e-05,2]
[396573318,1765055462557,-813.76,9.041e-05,2]
[396573320,1765055462566,-500.0,9.041e-05,2]
[396573322,1765055462576,-500.0,9.041e-05,2]
[396573324,1765055462586,-500.0,9.041e-05,2]
[396573326,1765055462595,-1158.75,9.041e-05,2]
[396573328,1765055462606,-942.22,9.041e-05,2]
[396573330,1765055462615,-760.34,9.041e-05,2]
[396573332,1765055462625,-1318.53,9.041e-05,2]
[396573334,1765055462635,-550.79,9.041e-05,2]
[396573337,1765055462644,-787.45,9.041e-05,2]
[396573339,1765055462655,-500.0,9.041e-05,2]
[396573341,1765055462665,-500.0,9.041e-05,2]
[396573343,1765055462676,-572.68,9.041e-05,2]
[396573345,1765055462687,-500.0,9.041e-05,2]
[396573347,1765055462698,-500.0,9.041e-05,2]
[396573349,1765055462708,-690.25,9.041e-05,2]
[396573351,1765055462718,-500.0,9.041e-05,2]
[396573353,1765055462728,-500.0,9.041e-05,2]
[396573355,1765055462738,-500.0,9.041e-05,2]
[396573357,1765055462747,-500.0,9.041e-05,2]
[396573359,1765055462757,-2757.34,9.041e-05,2]
[396573361,1765055462766,-500.0,9.041e-05,2]
[396573363,1765055462776,-292.1323164,9.041e-05,2]
[396573365,1765055462785,-500.0,9.041e-05,2]
[396573367,1765055462795,-500.0,9.041e-05,2]
[396573369,1765055462805,-1976.96,9.041e-05,2]
[396573371,1765055462814,-500.0,9.041e-05,2]
[396573373,1765055462826,-500.0,9.041e-05,2]
[396573375,1765055462835,-2168.82,9.041e-05,2]
[396573378,1765055462845,-500.0,9.041e-05,2]
[396573380,1765055462855,-574.36,9.041e-05,2]
[396573381,1765055462864,-500.0,9.041e-05,2]
[396573384,1765055462874,-500.0,9.041e-05,2]
[396573386,1765055462884,-500.0,9.041e-05,2]
[396573388,1765055462894,-500.0,9.041e-05,2]
[396573390,1765055462904,-500.0,9.041e-05,2]
[396573392,1765055462914,-758.66,9.041e-05,2]
[396573394,1765055462923,-662.65,9.041e-05,2]
[396573396,1765055462933,-500.0,9.041e-05,2]
[396573398,1765055462943,-500.0,9.041e-05,2]
[396573400,1765055462953,-1785.87,9.041e-05,2]
[396573402,1765055462963,-500.0,9.041e-05,2]
[396573404,1765055462973,-500.0,9.041e-05,2]
[396573406,1765055462984,-553.13069591,9.041e-05,2]
[396573408,1765055462994,-312.56134384,9.041e-05,2]
[396573481,1765055463674,-278.43865616,9.041e-05,2]
[396573483,1765055463685,-500.0,9.041e-05,2]
[396573485,1765055463694,-500.0,9.041e-05,2]
[396573487,1765055463704,-1058.33,9.041e-05,2]
[396573489,1765055463714,-500.0,9.041e-05,2]
[396573491,1765055463723,-500.0,9.041e-05,2]
[396573493,1765055463733,-415.60067895,9.041e-05,2]
[396573495,1765055463742,-500.0,9.041e-05,2]
[396573497,1765055463752,-500.0,9.041e-05,2]
[396573499,1765055463761,-1822.34,9.041e-05,2]
[396573501,1765055463770,-404.63173934,9.041e-05,2]
[396573530,1765055464039,160.0,5.8e-07,2]
[396573557,1765055464273,160.0,5.8e-07,2]
[396573565,1765055464352,-3340.43782878,8.219e-05,2]
[396573628,1765055464968,-3e-08,8.219e-05,2]
[396573630,1765055464984,-938.08217119,8.219e-05,2]
[396573632,1765055464993,-816.87782881,8.493e-05,2]
[396573653,1765055465180,160.0,5.8e-07,2]
[396573771,1765055466366,230.9,5.7e-07,2]
[396573775,1765055466397,249.1,5.7e-07,2]
[396573784,1765055466665,-500.0,6.705e-05,2]
[396573785,1765055466674,-500.0,6.705e-05,2]
[396573786,1765055466683,-301.9689207,6.91e-05,2]
[396573787,1765055466692,-500.0,8.219e-05,2]
[396573788,1765055466702,-3461.64217119,8.493e-05,2]
[396573789,1765055466711,-500.0,8.493e-05,2]
[396573791,1765055466721,-154.03976435,8.609e-05,2]
[396573792,1765055466730,-2890.06027602,8.767e-05,2]
[396573983,1765055468554,480.0,5.6e-07,2]
[396574477,1765055489809,-217.29391882,6.704e-05,2]
[396574478,1765055492635,-235.61207605,6.637e-05,2]
[396574479,1765055495389,-270.27895676,6.637e-05,2]
[396574480,1765055497129,-256.87988646,6.637e-05,2]
[396574481,1765055500099,-376.34858474,6.637e-05,2]
[396574482,1765055503420,-423.1959537,6.637e-05,2]
[396574483,1765055505580,723.18495163,6.571e-05,2]
[396574484,1765055506462,-188.12795238,6.637e-05,2]
[396574485,1765055508911,-182.04172186,6.637e-05,2]
[396574486,1765055510341,-161.06554237,6.637e-05,2]
[396574487,1765055512984,-48.12202386,6.637e-05,2]
[396574488,1765055513009,-186.02865353,6.704e-05,2]
[396574489,1765055514955,-96.67742765,6.704e-05,2]
[396574490,1765055514990,-214.37372166,6.704e-05,2]
[396574491,1765055516990,-235.14492352,6.704e-05,2]
[396574492,1765055518999,1473.00114678,0.00013107,3]
[396574493,1765055521690,-50.48135482,6.704e-05,2]
[396574494,1765055521719,-219.73287126,6.704e-05,2]
[396574495,1765055524335,-156.7595347,6.703e-05,2]
[396574496,1765055536263,443.2404653,6.57e-05,2]
[396574497,1765055557719,443.2404653,6.57e-05,2]
[396574498,1765055564260,-274.75222852,6.636e-05,2]
[396574499,1765055575567,-168.48823678,6.636e-05,2]
[396574500,1765055579436,443.2404653,6.636e-05,2]
[396574501,1765055592098,-300.0,6.703e-05,2]
[396574502,1765055608903,-300.0,6.768e-05,2]
[396574503,1765055623930,300.0,6.768e-05,2]
[396574504,1765055626634,-300.0,6.836e-05,2]
[396574505,1765055642493,300.0,6.836e-05,2]
[396574506,1765055643579,-600.0,6.837e-05,2]
[396574507,1765055646178,6032.50054645,6.769e-05,2]
[396574508,1765055661364,283.46302491,0.00013107,3]
[396574509,1765055663367,197.33,6.72e-05,2]
[396574510,1765055668099,2570.17945355,6.769e-05,2]
[396574511,1765055668128,3338.88978082,6.769e-05,2]
[396574512,1765055702424,168.0,6.836e-05,2]
[396574513,1765055702974,300.0,6.836e-05,2]
[396574514,1765055708496,674.0,6.836e-05,2]
[396574515,1765055744763,197.2,6.727e-05,2]
[396574516,1765055793339,500.0,6.836e-05,2]
[396574517,1765055793460,500.0,6.836e-05,2]
[396574518,1765055793544,500.0,6.836e-05,2]
[396574519,1765055793617,500.0,6.836e-05,2]
[396574520,1765055793705,500.0,6.836e-05,2]
[396574521,1765055793783,500.0,6.836e-05,2]
[396574522,1765055793860,500.0,6.836e-05,2]
[396574523,1765055793946,500.0,6.836e-05,2]
[396574524,1765055794031,500.0,6.836e-05,2]
[396574525,1765055794153,500.0,6.836e-05,2]
[396574526,1765055794223,321.92021918,6.836e-05,2]
[396574527,1765055794261,178.07978082,6.836e-05,2]
[396574528,1765055794358,500.0,6.836e-05,2]
[396574529,1765055794464,500.0,6.836e-05,2]
[396574530,1765055794555,500.0,6.836e-05,2]
[396574531,1765055794628,500.0,6.836e-05,2]
[396574532,1765055794741,500.0,6.836e-05,2]
[396574533,1765055794819,500.0,6.836e-05,2]
[396574534,1765055794950,219.45938473,6.836e-05,2]
[396574535,1765055809587,500.0,6.836e-05,2]
[396574536,1765055809644,500.0,6.836e-05,2]
[396574537,1765055809698,500.0,6.836e-05,2]
[396574538,1765055809753,300.0,6.836e-05,2]
[396574539,1765055823948,194.69,6.719e-05,2]
[396574540,1765055850945,-219.29822416,6.838e-05,2]
[396574541,1765055864826,-145.86246289,6.838e-05,2]
[396574542,1765055864852,-38.94571345,6.838e-05,2]
[396574543,1765055868208,-261.05428655,6.838e-05,2]
[396574544,1765055868239,-10.71405169,6.838e-05,2]
[396574545,1765055878147,1200.0,6.837e-05,2]
[396574546,1765055885220,-289.28594831,6.838e-05,2]
[396574547,1765055885256,-300.0,6.838e-05,2]
[396574548,1765055885293,-300.0,6.838e-05,2]
[396574549,1765055885330,-300.0,6.838e-05,2]
[396574550,1765055885366,-300.0,6.838e-05,2]
[396574551,1765055885404,-300.0,6.838e-05,2]
[396574552,1765055885445,-300.0,6.838e-05,2]
[396574553,1765055885479,-300.0,6.838e-05,2]
[396574554,1765055885518,-300.0,6.838e-05,2]
[396574555,1765055885556,-300.0,6.838e-05,2]
[396574556,1765055885592,-300.0,6.838e-05,2]
[396574557,1765055885629,-300.0,6.838e-05,2]
[396574558,1765055885664,-300.0,6.838e-05,2]
[396574559,1765055885698,-300.0,6.838e-05,2]
[396574560,1765055902224,269.83131917,6.836e-05,2]
[396574561,1765055903751,192.8,6.727e-05,2]
[396574562,1765055909318,500.0,6.836e-05,2]
[396574563,1765055909370,500.0,6.836e-05,2]
[396574564,1765055909411,500.0,6.836e-05,2]
[396574565,1765055909453,500.0,6.836e-05,2]
[396574566,1765055909497,500.0,6.836e-05,2]
[396574567,1765055909546,500.0,6.836e-05,2]
[396574568,1765055909594,500.0,6.836e-05,2]
[396574569,1765055909632,500.0,6.836e-05,2]
[396574570,1765055909676,500.0,6.836e-05,2]
[396574571,1765055909730,500.0,6.836e-05,2]
[396574572,1765055909778,532.50054646,6.836e-05,2]
[396574573,1765055909835,500.0,6.836e-05,2]
[396574574,1765055936353,499.99999999,6.836e-05,2]
[396574575,1765055952054,3100.07412217,0.00013107,3]
[396574576,1765055982747,190.35,6.69e-05,2]
[396574577,1765056062735,187.92,6.722e-05,2]
[396574578,1765056113282,3329.71040653,0.00013107,3]
[396574579,1765056141498,185.53,6.72e-05,2]
[396574580,1765056162035,2710.90945355,6.849e-05,2]
[396574581,1765056162060,7289.09054645,6.849e-05,2]
[396574582,1765056220242,183.17,6.722e-05,2]
[396574583,1765056299172,180.84,6.725e-05,2]
[396574584,1765056377914,178.54,6.717e-05,2]
[396574586,1765056457161,176.26,6.715e-05,2]
[396574587,1765056536328,174.02,6.719e-05,2]
[396574588,1765056542102,250.0,0.00013106,3]
[396574593,1765056616026,171.81,6.722e-05,2]
[396574623,1765056631957,-210.0,7.007e-05,2]
[396574625,1765056631968,-500.0,7.007e-05,2]
[396574628,1765056631978,-40.80649794,7.007e-05,2]
[396574638,1765056632091,-459.19350206,7.007e-05,2]
[396574640,1765056632101,-391.05104275,7.007e-05,2]
[396574641,1765056632111,-170.2778385,7.007e-05,2]
[396574643,1765056632120,-10.01946515,7.008e-05,2]
[396574680,1765056637990,-3562.80100511,7.008e-05,2]
[396574682,1765056638001,-1964.43383393,7.008e-05,2]
[396574685,1765056638013,-296.26393716,7.008e-05,2]
[396574687,1765056638025,-6391.15760666,7.008e-05,2]
[396574689,1765056638035,-364.68124017,7.018e-05,2]
[396574691,1765056638044,-343.61,7.042e-05,2]
[396574693,1765056638054,-300.0,7.147e-05,2]
[396574695,1765056638064,-300.0,7.147e-05,2]
[396574697,1765056638073,-300.0,7.147e-05,2]
[396574699,1765056638082,-300.0,7.147e-05,2]
[396574701,1765056638092,-300.0,7.147e-05,2]
[396574703,1765056638103,-300.0,7.147e-05,2]
[396574705,1765056638112,-300.0,7.147e-05,2]
[396574707,1765056638122,-300.0,7.147e-05,2]
[396574709,1765056638131,-300.0,7.147e-05,2]
[396574711,1765056638140,-300.0,7.147e-05,2]
[396574713,1765056638150,-300.0,7.147e-05,2]
[396574715,1765056638159,-300.0,7.147e-05,2]
[396574717,1765056638168,-300.0,7.147e-05,2]
[396574719,1765056638177,-300.0,7.147e-05,2]
[396574721,1765056638187,-300.0,7.147e-05,2]
[396574723,1765056638195,-151.0,7.152e-05,2]
[396574725,1765056638204,-515.42,7.362e-05,2]
[396574727,1765056638214,-7697.3462393,7.476e-05,2]
[396574729,1765056638223,-2961.01534357,7.504e-05,2]
[396574731,1765056638233,-250.0,7.606e-05,2]
[396574733,1765056638242,-600.0,7.623e-05,2]
[396574735,1765056638251,-687.23,7.682e-05,2]
[396574737,1765056638260,-859.03,8.002e-05,2]
[396574739,1765056638268,-1359.0,8.011e-05,2]
[396574741,1765056638277,-2155.0,8.011e-05,2]
[396574743,1765056638287,-631.0,8.011e-05,2]
[396574745,1765056638295,-278.82898878,8.011e-05,2]
[396574747,1765056638313,-200.92501122,8.011e-05,2]
[396574749,1765056638322,-415.0,8.011e-05,2]
[396574751,1765056638333,-1317.01231101,8.059e-05,2]
[396574754,1765056638343,-235.75889405,8.1e-05,2]
[396574756,1765056638354,-1646.08159874,8.1e-05,2]
[396574758,1765056638366,-443.47795952,8.1e-05,2]
[396574993,1765056640789,-3e-08,8.1e-05,2]
[396574995,1765056640801,-576.57381697,8.1e-05,2]
[396574997,1765056640812,-804.7719191,8.1e-05,2]
[396575188,1765056643239,-63.85927648,8.1e-05,2]
[396575189,1765056643251,-2729.74500216,8.1e-05,2]
[396575190,1765056643260,-23765.28431318,8.119e-05,2]
[396575191,1765056643271,-5396.0609,8.119e-05,2]
[396575192,1765056643282,-629.45209132,8.119e-05,2]
[396575521,1765056646523,-3421.29498103,8.119e-05,2]
[396578176,1765056694099,150.0,6.875e-05,2]
[396578177,1765056772470,150.0,6.717e-05,2]
[396578178,1765056852381,150.0,6.722e-05,2]
[396578179,1765056932492,150.0,6.727e-05,2]
[396578180,1765057011168,150.0,6.85e-05,2]
[396578181,1765057092963,150.0,6.856e-05,2]
[396578182,1765057172198,150.0,6.854e-05,2]
[396578183,1765057254668,150.0,6.882e-05,2]
[396578184,1765057333574,150.0,6.878e-05,2]
[396578185,1765057414965,150.0,6.884e-05,2]
[396578187,1765057495285,150.0,6.886e-05,2]
[396578188,1765057580402,150.0,6.725e-05,2]
[396578189,1765057659758,150.0,6.888e-05,2]
[396578205,1765057740995,150.0,6.728e-05,2]
[396578206,1765057742424,250.0,0.00013105,3]
[396578207,1765057821944,150.0,6.881e-05,2]
[396578238,1765057832320,-210.0,7.048e-05,2]
[396578240,1765057832331,-254.44538723,7.114e-05,2]
[396578245,1765057832366,-105.94222813,7.114e-05,2]
[396578247,1765057832375,-224.56,7.209e-05,2]
[396578249,1765057832384,-336.84,7.537e-05,2]
[396578251,1765057832394,-855.1474535,7.76e-05,2]
[396578253,1765057832404,-1129.08268686,7.825e-05,2]
[396578255,1765057832413,-449.12,7.864e-05,2]
[396578257,1765057832423,-2665.23948833,7.869e-05,2]
[396578259,1765057832432,-1200.0,7.899e-05,2]
[396578261,1765057832442,-397.3971243,7.9e-05,2]
[396578263,1765057832451,-397.3971243,7.9e-05,2]
[396578265,1765057832461,-397.3971243,7.9e-05,2]
[396578267,1765057832470,-300.0,7.993e-05,2]
[396578269,1765057832480,-300.0,7.993e-05,2]
[396578272,1765057832489,-1359.0,7.994e-05,2]
[396578274,1765057832499,-2155.0,7.994e-05,2]
[396578276,1765057832509,-631.0,7.994e-05,2]
[396578278,1765057832518,-794.6260506,8e-05,2]
[396578280,1765057832527,-82079.66760829,8.019e-05,2]
[396578376,1765057838371,-748.8671078,8.019e-05,2]
[396578505,1765057840519,-250.77106545,7.899e-05,2]
[396578508,1765057840531,-362.7508338,7.899e-05,2]
[396578510,1765057840540,-90.2491662,8.019e-05,2]
[396578815,1765057843292,-417.55037667,8.019e-05,2]
[396578833,1765057843457,-2475.99630537,8.019e-05,2]
[396579109,1765057846205,-561.00000001,8.019e-05,2]
[396581182,1765057901459,150.0,6.988e-05,2]
[396581183,1765057980854,150.0,6.725e-05,2]
[396581184,1765058059014,150.0,6.72e-05,2]
[396581185,1765058137454,150.0,6.721e-05,2]
[396581186,1765058215358,150.0,6.721e-05,2]
[396581187,1765058296617,150.0,6.723e-05,2]
[396581188,1765058375648,150.0,6.722e-05,2]
[396581189,1765058454726,150.0,6.72e-05,2]
[396581190,1765058533398,150.0,6.72e-05,2]
[396581191,1765058612633,150.0,6.718e-05,2]
[396581192,1765058690725,150.0,6.718e-05,2]
[396581193,1765058735745,967.3528172,6.849e-05,2]
[396581194,1765058767603,150.0,6.719e-05,2]
[396581195,1765058848773,150.0,6.718e-05,2]
[396581225,1765058927388,150.0,6.733e-05,2]
[396581226,1765058941972,250.0,0.00013104,3]
[396581227,1765059004130,150.0,6.716e-05,2]
[396581259,1765059032319,-150.0,7.038e-05,2]
[396581260,1765059032328,-210.0,7.038e-05,2]
[396581262,1765059032338,-356.17986306,7.04e-05,2]
[396581263,1765059032348,-212.35,7.356e-05,2]
[396581264,1765059032358,-967.96947386,7.39e-05,2]
[396581265,1765059032367,-283.13,7.676e-05,2]
[396581266,1765059032376,-45.58748166,7.83e-05,2]
[396581267,1765059032388,-607.51500014,7.83e-05,2]
[396581268,1765059032399,-314.86699206,7.83e-05,2]
[396581269,1765059032409,-396.7310623,7.83e-05,2]
[396581270,1765059032419,-153.0,7.83e-05,2]
[396581271,1765059032428,-1200.0,7.839e-05,2]
[396581272,1765059032439,-306.0,7.84e-05,2]
[396581273,1765059032448,-153.0,7.84e-05,2]
[396581274,1765059032457,-251.0,7.846e-05,2]
[396581275,1765059032466,-300.0,7.846e-05,2]
[396581276,1765059032475,-500.0,7.847e-05,2]
[396581277,1765059032487,-602.143583,7.847e-05,2]
[396581278,1765059032496,-215.15901568,7.847e-05,2]
[396581279,1765059032505,-1359.0,7.848e-05,2]
[396581280,1765059032514,-631.0,7.848e-05,2]
[396581281,1765059032524,-2155.0,7.848e-05,2]
[396581282,1765059032533,-153.0,7.85e-05,2]
[396581283,1765059032543,-415.0,7.861e-05,2]
[396581284,1765059032552,-84029.16968502,7.919e-05,2]
[396581285,1765059032564,-1585.5370274,7.919e-05,2]
[396581286,1765059032577,-2997.86350935,7.919e-05,2]
[396581287,1765059032665,-28289.51667992,7.919e-05,2]
[396581288,1765059032676,-690.9539,7.919e-05,2]
[396581317,1765059038455,-677.57381246,7.919e-05,2]
[396581319,1765059038466,-1668.75000003,7.919e-05,2]
[396581321,1765059038478,-653.5749005,7.919e-05,2]
[396581330,1765059038549,-429553.47636185,7.919e-05,2]
[396581332,1765059038560,-617.6599536,7.919e-05,2]
[396581338,1765059038611,-9733.62907546,7.919e-05,2]
[396581341,1765059038622,-26970.45435656,7.919e-05,2]
[396581531,1765059040685,-10423.99146691,7.919e-05,2]
[396581539,1765059040744,-5545.07310331,7.919e-05,2]
[396581838,1765059043541,-30748.65141089,7.919e-05,2]
[396581844,1765059043588,-1038.06979688,7.919e-05,2]
[396582122,1765059046428,-516.50743114,7.919e-05,2]
[396582127,1765059046466,-122443.38082366,7.919e-05,2]
[396582129,1765059046477,-6145.95023051,7.919e-05,2]
[396582135,1765059046519,-483.90748233,7.919e-05,2]
[396582142,1765059046575,-14903.65695124,7.919e-05,2]
[396582144,1765059046586,-2541.81606692,7.919e-05,2]
[396582146,1765059046597,-70857.47819547,7.919e-05,2]
[396583929,1765059080805,150.0,6.727e-05,2]
[396583930,1765059156507,150.0,6.717e-05,2]
[396583931,1765059231153,150.0,6.713e-05,2]
[396583932,1765059308320,150.0,6.718e-05,2]
[396583933,1765059385094,150.0,6.723e-05,2]
[396583934,1765059412673,163.0,0.000203,120]
[396583935,1765059462124,150.0,6.725e-05,2]
[396583936,1765059536634,150.0,6.719e-05,2]
[396583937,1765059608505,150.0,6.685e-05,2]
[396583938,1765059683543,150.0,6.729e-05,2]
[396583939,1765059756662,150.0,6.725e-05,2]
[396583940,1765059833392,150.0,6.718e-05,2]
[396583941,1765059903942,150.0,6.719e-05,2]
[396583942,1765059974937,150.0,6.714e-05,2]
[396583943,1765060048670,150.0,6.879e-05,2]
[396583945,1765060122521,150.0,6.881e-05,2]
[396583947,1765060142719,250.0,0.00013103,3]
[396583948,1765060194058,150.0,6.855e-05,2]
[396583980,1765060232619,-210.0,7.047e-05,2]
[396583982,1765060232629,-252.228,7.066e-05,2]
[396584012,1765060238624,-99.82826579,7.066e-05,2]
[396584014,1765060238635,-150.0,7.207e-05,2]
[396584016,1765060238647,-150.0,7.535e-05,2]
[396584018,1765060238658,-100.17173421,7.862e-05,2]
[396584027,1765060238735,-49.82826579,7.862e-05,2]
[396584030,1765060238747,-250.0,7.918e-05,2]
[396584032,1765060238758,-1200.0,7.966e-05,2]
[396584034,1765060238770,-500.0,7.967e-05,2]
[396584036,1765060238780,-357.63420582,7.967e-05,2]
[396584038,1765060238792,-1200.0,7.967e-05,2]
[396584040,1765060238803,-300.0,7.967e-05,2]
[396584043,1765060238813,-300.0,7.967e-05,2]
[396584046,1765060238824,-631.0,7.968e-05,2]
[396584048,1765060238835,-1359.0,7.968e-05,2]
[396584050,1765060238846,-2155.0,7.968e-05,2]
[396584052,1765060238857,-415.0,7.968e-05,2]
[396584054,1765060238868,-150.0,7.994e-05,2]
[396584057,1765060238878,-150.0,7.994e-05,2]
[396584059,1765060238888,-150.0,7.994e-05,2]
[396584061,1765060238899,-150.0,7.994e-05,2]
[396584063,1765060238910,-153.0,8e-05,2]
[396584065,1765060238920,-153.0,8e-05,2]
[396584067,1765060238932,-2100.7384025,8.026e-05,2]
[396584069,1765060238943,-968.35658423,8.104e-05,2]
[396584071,1765060238954,-648.406,8.104e-05,2]
[396584074,1765060238966,-180.22642355,8.104e-05,2]
[396584076,1765060238976,-999.60015994,8.118e-05,2]
[396584077,1765060238987,-48235.5028513,8.119e-05,2]
[396584096,1765060240962,-500.0,8.119e-05,2]
[396584426,1765060244015,-4470.52434154,8.119e-05,2]
[396584428,1765060244027,-2903.46093339,8.119e-05,2]
[396584684,1765060246685,-501.05,8.119e-05,2]
[396584686,1765060246696,-454.932072,8.119e-05,2]
[396584688,1765060246707,-407.6911998,8.119e-05,2]
[396586438,1765060265159,150.0,6.727e-05,2]
[396586767,1765060336017,150.0,6.687e-05,2]
[396586769,1765060403586,150.0,6.684e-05,2]
[396586770,1765060473871,150.0,6.851e-05,2]
[396586772,1765060544700,150.0,6.681e-05,2]
[396586773,1765060545136,150.0,6.999e-05,2]
[396586774,1765060612234,150.0,6.693e-05,2]
[396586775,1765060677441,150.0,6.69e-05,2]
[396586776,1765060742101,150.0,6.722e-05,2]
[396586777,1765060806358,150.0,6.709e-05,2]
[396586778,1765060871001,150.0,6.742e-05,2]
[396586779,1765060936175,150.0,6.721e-05,2]
[396586780,1765061042021,155.93024149,6.815e-05,2]
[396586792,1765061283084,172.6546488,6.815e-05,2]
[396586794,1765061342460,250.0,0.00013102,3]
[396586796,1765061431807,-210.0,7.012e-05,2]
[396586797,1765061431817,-102.02473589,7.07e-05,2]
[396586798,1765061431868,-245.99040459,7.07e-05,2]
[396586799,1765061431878,-250.0,7.7e-05,2]
[396586800,1765061431888,-656.97660423,7.729e-05,2]
[396586851,1765061437790,-117.94102227,7.729e-05,2]
[396586853,1765061437800,-300.0,7.902e-05,2]
[396586855,1765061437809,-100.27271926,7.903e-05,2]
[396586860,1765061437847,-553.1658229,7.903e-05,2]
[396586862,1765061437858,-705.56145784,7.903e-05,2]
[396586864,1765061437867,-356.29920548,7.903e-05,2]
[396587089,1765061440285,-1798.70079452,7.903e-05,2]
[396587091,1765061440295,-631.0,7.903e-05,2]
[396587093,1765061440304,-1695.13354669,7.951e-05,2]
[396587095,1765061440318,-192.62021441,7.951e-05,2]
[396587097,1765061440328,-2565.4423607,7.951e-05,2]
[396587099,1765061440337,-621.257,8.009e-05,2]
[396587101,1765061440346,-325.19280222,8.018e-05,2]
[396587104,1765061440357,-447.92038322,8.018e-05,2]
[396587105,1765061440367,-597.46575407,8.019e-05,2]
[396587110,1765061440403,-15442.97707447,8.019e-05,2]
[396587387,1765061443065,-48013.56920871,8.019e-05,2]
[396587390,1765061443076,-125488.84470438,8.019e-05,2]
[396587670,1765061446239,-6762.61166162,8.019e-05,2]
[396589696,1765062542184,250.0,0.00013101,3]
[396589773,1765062632645,-300.0,7.818e-05,2]
[396589774,1765062632654,-101.15789213,7.819e-05,2]
[396589821,1765062638349,-1587.82724308,7.819e-05,2]
[396589822,1765062638406,-728.6184897,7.819e-05,2]
[396589823,1765062638418,-5672.69566845,7.819e-05,2]
[396589824,1765062638430,-27082.3,7.819e-05,2]
[396589825,1765062638442,-3006.72,7.819e-05,2]
[396589826,1765062638454,-2739.5793,7.819e-05,2]
[396589827,1765062638465,-971.06999034,7.819e-05,2]
[396589828,1765062638477,-2668.98,7.819e-05,2]
[396589829,1765062638523,-12271.545354,7.819e-05,2]
[396589852,1765062640306,-736.81817554,7.819e-05,2]
[396589865,1765062640422,-12310.96601675,7.819e-05,2]
[396590252,1765062644409,-2881.26339826,7.819e-05,2]
[396590442,1765062646206,-52210.36909652,7.819e-05,2]
[396590450,1765062646268,-21064.90179231,7.819e-05,2]